fUSD/lending_fUSD_20240109
["ID","MTS","AMOUNT","RATE_DAILY","PERIOD"]
[310957361,1704835936990,-500.0,0.00041095,30]
[310957362,1704835937007,-500.0,0.00041095,30]
[310957363,1704835937034,-500.0,0.00041095,30]
[310957364,1704835937058,-1944.68,0.00041095,30]
[310957365,1704835937076,-924.78,0.00041095,30]
[310957366,1704835937104,-1764.13,0.00041095,30]
[310957367,1704835937130,-10402.25,0.00041095,30]
[310957368,1704835937151,-500.0,0.00041095,30]
[310957369,1704835937172,-500.0,0.00041095,30]
[310957370,1704835937190,-4303.2,0.00041095,30]
[310957371,1704835937206,-4288.57,0.00041095,30]
[310957372,1704835937221,-7059.7,0.00041095,30]
[310957373,1704835937237,-1000.0,0.00041095,2]
[310957374,1704835937262,-6327.7,0.00041095,30]
[310957375,1704835937288,-500.0,0.00041095,30]
[310957376,1704835937304,-1629.67,0.00041095,30]
[310957377,1704835937325,-2082.36,0.00041095,30]
[310957378,1704835937346,-500.0,0.00041095,30]
[310957379,1704835937362,-500.0,0.00041095,30]
[310957380,1704835937384,-699.1,0.00041095,30]
[310957381,1704835937406,-737.62,0.00041095,30]
[310957382,1704835937425,-961.05,0.00041095,30]
[310957383,1704835937451,-261.37458618,0.00041095,30]
[310957384,1704835937471,-5348.86,0.00041095,30]
[310957385,1704835937487,-1808.65,0.00041095,30]
[310957386,1704835937511,-151.0,0.00041095,7]
[310957387,1704835937532,-151.0,0.00041095,7]
[310957388,1704835937551,-151.0,0.00041095,7]
[310957389,1704835937575,-151.0,0.00041095,7]
[310957390,1704835937605,-276.79,0.00041095,7]
[310957391,1704835937633,-299.57964,0.00041095,7]
[310957392,1704835937667,-151.0,0.00041095,7]
[310957393,1704835937684,-151.0,0.00041095,7]
[310957394,1704835937712,-190.450912,0.00041095,7]
[310957395,1704835937746,-190.450912,0.00041095,7]
[310957396,1704835937769,-151.0,0.00041095,7]
[310957397,1704835937799,-4584.0,0.00041095,5]
[310957398,1704835937829,-8750.0,0.000411,5]
[310957399,1704835937862,-5500.0,0.000411,30]
[310957400,1704835937893,-917.78142382,0.000411,30]
[310957401,1704835937920,-772.0,0.000411,2]
[310957402,1704835937939,-370.25734493,0.000411,2]
[310957403,1704835937968,-654.70302935,0.000411,2]
[310957404,1704835937988,-3000.0,0.000411,2]
[310957405,1704835938021,-650.8095,0.000411,30]
[310957406,1704835938042,-4794.5154,0.000411,30]
[310957407,1704835938064,-152.0,0.00041104,3]
[310957408,1704835938085,-10000.0,0.0004111,28]
[310957409,1704835938123,-2095.7451378,0.00041122,2]
[310957410,1704835938148,-500.0,0.00041138,2]
[310957411,1704835938173,-8750.0,0.0004115,5]
[310957412,1704835938199,-686.8078177,0.0004115,2]
[310957413,1704835938223,-1760.0238543,0.0004115,2]
[310957414,1704835938239,-26833.9740825,0.0004115,2]
[310957415,1704835938266,-703.5150511,0.0004115,2]
[310957416,1704835938287,-1189.3338025,0.0004115,2]
[310957417,1704835938315,-459.81776109,0.0004116,15]
[310957418,1704835938331,-200.0,0.00041168,7]
[310957419,1704835938350,-200.0,0.00041168,7]
[310957420,1704835938372,-200.0,0.00041168,7]
[310957421,1704835938397,-200.0,0.00041168,7]
[310957422,1704835938420,-200.0,0.00041168,7]
[310957423,1704835938433,-500.0,0.00041178,30]
[310957424,1704835938454,-397.04,0.00041178,30]
[310957425,1704835938480,-500.0,0.00041178,30]
[310957426,1704835938504,-500.0,0.00041178,30]
[310957427,1704835938530,-500.0,0.00041178,30]
[310957428,1704835938545,-500.0,0.00041178,30]
[310957429,1704835938579,-500.0,0.00041178,30]
[310957430,1704835938600,-500.0,0.00041178,30]
[310957431,1704835938628,-500.0,0.00041178,30]
[310957432,1704835938646,-625.26388913,0.00041178,30]
[310957433,1704835938660,-510.38723626,0.00041178,30]
[310957434,1704835938685,-500.0,0.00041178,30]
[310957435,1704835938712,-500.0,0.00041178,30]
[310957436,1704835938734,-500.0,0.00041178,30]
[310957437,1704835938758,-500.0,0.00041178,30]
[310957438,1704835938783,-500.0,0.00041178,30]
[310957439,1704835938801,-500.0,0.00041178,30]
[310957440,1704835938824,-519.07,0.00041178,30]
[310957441,1704835938853,-500.0,0.00041178,30]
[310957442,1704835938869,-500.0,0.00041178,30]
[310957443,1704835938900,-500.0,0.00041178,30]
[310957444,1704835938925,-500.0,0.00041178,30]
[310957445,1704835938948,-519.36743,0.00041178,30]
[310957446,1704835938974,-500.0,0.00041178,30]
[310957447,1704835938999,-500.0,0.00041178,30]
[310957448,1704835939027,-500.0,0.00041178,30]
[310957449,1704835939061,-500.0,0.00041178,30]
[310957450,1704835939084,-500.0,0.00041178,30]
[310957451,1704835939115,-500.0,0.00041178,7]
[310957452,1704835939146,-500.0,0.00041178,30]
[310957453,1704835939174,-500.0,0.00041178,30]
[310957454,1704835939197,-500.0,0.00041178,30]
[310957455,1704835939224,-1003.07,0.00041178,6]
[310957456,1704835939257,-500.0,0.00041178,30]
[310957457,1704835939280,-500.0,0.00041178,30]
[310957458,1704835939302,-500.0,0.00041178,30]
[310957459,1704835939330,-500.0,0.00041178,30]
[310957460,1704835939350,-500.0,0.00041178,30]
[310957461,1704835939367,-500.0,0.00041178,30]
[310957462,1704835939391,-599.12,0.00041178,30]
[310957463,1704835939415,-500.0,0.00041178,30]
[310957464,1704835939443,-500.0,0.00041178,30]
[310957465,1704835939465,-500.0,0.00041178,30]
[310957466,1704835939489,-500.0,0.00041178,30]
[310957467,1704835939521,-500.0,0.00041178,30]
[310957468,1704835939541,-409.10026931,0.00041178,30]
[310957469,1704835939571,-500.0,0.00041178,30]
[310957470,1704835939585,-870.95,0.00041178,30]
[310957471,1704835939613,-774.16,0.00041178,30]
[310957472,1704835939638,-500.0,0.00041178,2]
[310957474,1704835939669,-628.44,0.00041178,30]
[310957475,1704835939691,-500.0,0.00041178,30]
[310957476,1704835939710,-500.0,0.00041178,30]
[310957477,1704835939744,-500.0,0.00041178,30]
[310957478,1704835939774,-583.93,0.00041178,30]
[310957479,1704835939799,-500.0,0.00041178,30]
[310957480,1704835939830,-664.43,0.00041178,30]
[310957481,1704835939859,-642.11,0.00041178,30]
[310957482,1704835939876,-1006.44,0.00041178,30]
[310957483,1704835939892,-500.0,0.00041178,30]
[310957484,1704835939917,-500.0,0.00041178,30]
[310957485,1704835939944,-785.15,0.00041178,30]
[310957486,1704835940086,-500.0,0.00041178,30]
[310957487,1704835940115,-500.0,0.00041178,30]
[310957488,1704835940143,-500.0,0.00041178,30]
[310957489,1704835940164,-500.0,0.00041178,30]
[310957490,1704835940184,-500.0,0.00041178,30]
[310957491,1704835940211,-500.0,0.00041178,30]
[310957492,1704835940239,-500.0,0.00041178,30]
[310957493,1704835940262,-500.0,0.00041178,30]
[310957494,1704835940281,-500.0,0.00041178,30]
[310957495,1704835940300,-500.0,0.00041178,30]
[310957496,1704835940330,-500.0,0.00041178,30]
[310957497,1704835940363,-504.92828427,0.00041178,30]
[310957498,1704835940388,-647.85,0.00041178,30]
[310957499,1704835940415,-500.0,0.00041178,30]
[310957500,1704835940452,-500.0,0.00041178,30]
[310957501,1704835940485,-500.0,0.00041178,30]
[310957502,1704835940513,-1176.3,0.00041178,30]
[310957503,1704835940542,-892.9,0.00041178,30]
[310957504,1704835940562,-500.0,0.00041178,30]
[310957505,1704835940585,-500.0,0.00041178,30]
[310957506,1704835940612,-500.0,0.00041178,30]
[310957507,1704835940632,-423.60835652,0.00041178,30]
[310957508,1704835940666,-500.0,0.00041178,30]
[310957509,1704835940689,-500.0,0.00041178,30]
[310957510,1704835940719,-500.0,0.00041178,30]
[310957511,1704835940749,-500.0,0.00041178,30]
[310957512,1704835940769,-500.0,0.00041178,30]
[310957513,1704835940790,-875.0,0.00041178,30]
[310957514,1704835940815,-500.0,0.00041178,30]
[310957515,1704835940862,-288.15361686,0.00041178,30]
[310957516,1704835940883,-500.0,0.00041178,30]
[310957517,1704835940898,-500.0,0.00041178,30]
[310957518,1704835940915,-1021.0,0.00041178,30]
[310957519,1704835940942,-500.0,0.00041178,30]
[310957520,1704835940963,-500.0,0.00041178,30]
[310957521,1704835940984,-924.33,0.00041178,30]
[310957522,1704835941001,-500.0,0.00041178,30]
[310957523,1704835941028,-552.38,0.00041178,30]
[310957524,1704835941072,-1079.22,0.00041178,30]
[310957525,1704835941100,-500.0,0.00041178,30]
[310957526,1704835941139,-500.0,0.00041178,30]
[310957527,1704835941170,-500.0,0.00041178,30]
[310957528,1704835941199,-500.0,0.00041178,30]
[310957529,1704835941234,-509.80312169,0.00041178,30]
[310957530,1704835941269,-500.0,0.00041178,30]
[310957532,1704835941303,-500.0,0.00041178,30]
[310957533,1704835941332,-352.18581217,0.00041178,30]
[310957535,1704835941361,-500.0,0.00041178,30]
[310957536,1704835941399,-749.02,0.00041178,30]
[310957538,1704835941425,-500.0,0.00041178,30]
[310957539,1704835941439,-588.43763223,0.00041178,30]
[310957541,1704835941463,-500.0,0.00041178,30]
[310957542,1704835941488,-500.0,0.00041178,30]
[310957544,1704835941518,-500.0,0.00041178,30]
[310957546,1704835941547,-500.0,0.00041178,30]
[310957547,1704835941580,-507.33,0.00041178,30]
[310957549,1704835941598,-500.0,0.00041178,30]
[310957551,1704835941620,-500.0,0.00041178,30]
[310957552,1704835941644,-500.0,0.00041178,30]
[310957554,1704835941667,-500.0,0.00041178,30]
[310957556,1704835941699,-500.0,0.00041178,30]
[310957557,1704835941730,-500.0,0.00041178,30]
[310957559,1704835941760,-500.0,0.00041178,30]
[310957560,1704835941784,-556.06,0.00041178,30]
[310957562,1704835941819,-500.0,0.00041178,30]
[310957564,1704835941841,-500.0,0.00041178,30]
[310957565,1704835941863,-500.0,0.00041178,2]
[310957567,1704835941887,-500.0,0.00041178,30]
[310957568,1704835941904,-500.0,0.00041178,30]
[310957570,1704835941925,-500.0,0.00041178,30]
[310957572,1704835941945,-544.95,0.00041178,30]
[310957573,1704835941969,-500.0,0.00041178,30]
[310957575,1704835941991,-500.0,0.00041178,30]
[310957576,1704835942011,-500.0,0.00041178,30]
[310957578,1704835942038,-500.0,0.00041178,30]
[310957579,1704835942055,-500.0,0.00041178,30]
[310957581,1704835942078,-889.52,0.00041178,30]
[310957582,1704835942103,-500.0,0.00041178,30]
[310957583,1704835942121,-643.58,0.00041178,30]
[310957584,1704835942146,-857.15,0.00041178,30]
[310957585,1704835942164,-500.0,0.00041178,30]
[310957586,1704835942188,-500.0,0.00041178,30]
[310957587,1704835942214,-549.07,0.00041178,30]
[310957588,1704835942235,-500.0,0.00041178,30]
[310957589,1704835942257,-500.0,0.00041178,30]
[310957590,1704835942276,-500.0,0.00041178,30]
[310957592,1704835942301,-740.92,0.00041178,30]
[310957593,1704835942321,-674.98,0.00041178,30]
[310957594,1704835942335,-500.0,0.00041178,30]
[310957595,1704835942353,-500.0,0.00041178,30]
[310957596,1704835942369,-879.09,0.00041178,30]
[310957597,1704835942395,-500.0,0.00041178,30]
[310957598,1704835942423,-525.43,0.00041178,30]
[310957599,1704835942445,-500.0,0.00041178,30]
[310957600,1704835942465,-500.0,0.00041178,30]
[310957601,1704835942482,-500.0,0.00041178,30]
[310957602,1704835942498,-500.0,0.00041178,30]
[310957603,1704835942517,-894.54,0.00041178,30]
[310957604,1704835942535,-500.0,0.00041178,30]
[310957605,1704835942553,-500.0,0.00041178,30]
[310957606,1704835942573,-1210.61,0.00041178,30]
[310957607,1704835942590,-500.0,0.00041178,30]
[310957608,1704835942619,-500.0,0.00041178,30]
[310957609,1704835942651,-500.0,0.00041178,30]
[310957610,1704835942681,-500.0,0.00041178,30]
[310957611,1704835942708,-500.0,0.00041178,30]
[310957612,1704835942732,-1262.57,0.00041178,30]
[310957613,1704835942773,-500.0,0.00041178,30]
[310957614,1704835942813,-500.0,0.00041178,30]
[310957615,1704835942837,-500.0,0.00041178,30]
[310957616,1704835942857,-767.71,0.00041178,30]
[310957617,1704835942879,-571.45,0.00041178,30]
[310957618,1704835942910,-500.0,0.00041178,30]
[310957619,1704835942934,-500.0,0.00041178,30]
[310957620,1704835942957,-500.0,0.00041178,30]
[310957621,1704835942975,-500.0,0.00041178,30]
[310957622,1704835943001,-500.0,0.00041178,30]
[310957623,1704835943017,-1000.0,0.00041178,30]
[310957624,1704835943046,-500.0,0.00041178,30]
[310957625,1704835943066,-1012.62,0.00041178,30]
[310957626,1704835943082,-568.08,0.00041178,30]
[310957627,1704835943101,-500.0,0.00041178,30]
[310957628,1704835943120,-1247.69,0.00041178,30]
[310957629,1704835943140,-500.0,0.00041178,30]
[310957630,1704835943168,-520.83929439,0.00041178,30]
[310957631,1704835943186,-504.29,0.00041178,30]
[310957632,1704835943201,-744.29,0.00041178,30]
[310957633,1704835943221,-500.0,0.00041178,30]
[310957634,1704835943237,-500.0,0.00041178,30]
[310957635,1704835943250,-1071.67,0.00041178,30]
[310957636,1704835943272,-500.0,0.00041178,30]
[310957637,1704835943291,-500.0,0.00041178,30]
[310957638,1704835943321,-1041.65,0.00041178,30]
[310957639,1704835943346,-500.0,0.00041178,30]
[310957640,1704835943378,-597.48,0.00041178,30]
[310957641,1704835943406,-500.0,0.00041178,30]
[310957642,1704835943438,-670.96,0.00041178,30]
[310957643,1704835943461,-500.0,0.00041178,30]
[310957644,1704835943496,-202.82116397,0.00041178,30]
[310957645,1704835943521,-500.0,0.00041178,30]
[310957646,1704835943540,-500.0,0.00041178,30]
[310957647,1704835943561,-500.0,0.00041178,30]
[310957648,1704835943592,-992.5,0.00041178,30]
[310957649,1704835943611,-500.0,0.00041178,30]
[310957650,1704835943639,-1379.24,0.00041178,30]
[310957651,1704835943661,-500.0,0.00041178,30]
[310957652,1704835943689,-203.74592898,0.00041178,30]
[310957653,1704835943713,-500.0,0.00041178,30]
[310957654,1704835943743,-891.81,0.00041178,30]
[310957655,1704835943764,-500.0,0.00041178,30]
[310957656,1704835943787,-500.0,0.00041178,30]
[310957657,1704835943809,-500.0,0.00041178,30]
[310957658,1704835943834,-551.2629776,0.00041178,30]
[310957659,1704835943855,-3464.95,0.00041178,30]
[310957660,1704835943884,-500.0,0.00041178,30]
[310957661,1704835943900,-500.0,0.00041178,30]
[310957662,1704835943925,-838.55,0.00041178,30]
[310957663,1704835943943,-660.81,0.00041178,30]
[310957664,1704835943965,-500.0,0.00041178,30]
[310957665,1704835943988,-1525.96,0.00041178,30]
[310957666,1704835944007,-940.28,0.00041178,30]
[310957667,1704835944054,-797.09,0.00041178,30]
[310957668,1704835944074,-500.0,0.00041178,30]
[310957669,1704835944120,-500.0,0.00041178,30]
[310957670,1704835944142,-500.0,0.00041178,30]
[310957671,1704835944169,-500.0,0.00041178,30]
[310957672,1704835944188,-500.0,0.00041178,30]
[310957673,1704835944209,-1021.78,0.00041178,30]
[310957674,1704835944230,-299.3204225,0.00041178,30]
[310957675,1704835944246,-1950.33,0.00041178,30]
[310957676,1704835944268,-500.0,0.00041178,30]
[310957677,1704835944292,-500.0,0.00041178,30]
[310957678,1704835944316,-500.0,0.00041178,30]
[310957679,1704835944327,-495.36313251,0.00041178,30]
[310957680,1704835944349,-500.0,0.00041178,30]
[310957681,1704835944369,-765.32,0.00041178,30]
[310957682,1704835944398,-624.2,0.00041178,30]
[310957683,1704835944426,-500.0,0.00041178,30]
[310957684,1704835944449,-1106.38,0.00041178,30]
[310957685,1704835944472,-581.2,0.00041178,30]
[310957686,1704835944492,-500.0,0.00041178,30]
[310957687,1704835944517,-500.0,0.00041178,30]
[310957688,1704835944540,-500.0,0.00041178,30]
[310957689,1704835944566,-174.24374195,0.00041178,30]
[310957690,1704835944584,-779.64,0.00041178,30]
[310957691,1704835944608,-535.55342812,0.00041178,30]
[310957692,1704835944642,-500.0,0.00041178,30]
[310957693,1704835944660,-500.0,0.00041178,30]
[310957694,1704835944689,-500.0,0.00041178,30]
[310957695,1704835944715,-500.0,0.00041178,30]
[310957696,1704835944743,-500.0,0.00041178,30]
[310957697,1704835944765,-500.0,0.00041178,30]
[310957698,1704835944786,-509.69517869,0.00041178,30]
[310957699,1704835944805,-557.57,0.00041178,30]
[310957700,1704835944824,-742.05,0.00041178,30]
[310957701,1704835944840,-578.59,0.00041178,30]
[310957702,1704835944867,-500.0,0.00041178,30]
[310957703,1704835944897,-500.0,0.00041178,30]
[310957704,1704835944920,-500.0,0.00041178,30]
[310957705,1704835944939,-449.56819245,0.00041178,30]
[310957706,1704835944957,-718.23,0.00041178,30]
[310957707,1704835944977,-500.0,0.00041178,30]
[310957708,1704835945000,-253.64279525,0.00041178,30]
[310957709,1704835945027,-500.0,0.00041178,30]
[310957710,1704835945046,-500.0,0.00041178,30]
[310957711,1704835945061,-500.0,0.00041178,30]
[310957712,1704835945080,-500.0,0.00041178,30]
[310957713,1704835945105,-500.0,0.00041178,30]
[310957714,1704835945120,-500.0,0.00041178,30]
[310957715,1704835945136,-529.99489118,0.00041178,30]
[310957716,1704835945159,-500.0,0.00041178,30]
[310957717,1704835945177,-500.0,0.00041178,30]
[310957718,1704835945204,-500.0,0.00041178,30]
[310957719,1704835945221,-1681.49,0.00041178,30]
[310957720,1704835945242,-667.7,0.00041178,30]
[310957721,1704835945265,-500.0,0.00041178,30]
[310957722,1704835945297,-500.0,0.00041178,30]
[310957723,1704835945313,-500.0,0.00041178,30]
[310957724,1704835945336,-387.42075066,0.00041178,30]
[310957725,1704835945352,-500.0,0.00041178,30]
[310957726,1704835945367,-803.72,0.00041178,30]
[310957727,1704835945390,-500.0,0.00041178,30]
[310957728,1704835945403,-691.09,0.00041178,30]
[310957729,1704835945423,-820.84,0.00041178,30]
[310957730,1704835945441,-500.0,0.00041178,30]
[310957731,1704835945460,-500.0,0.00041178,30]
[310957732,1704835945486,-500.0,0.00041178,30]
[310957733,1704835945510,-500.0,0.00041178,30]
[310957734,1704835945530,-500.0,0.00041178,7]
[310957735,1704835945552,-500.0,0.00041178,30]
[310957736,1704835945577,-500.0,0.00041178,30]
[310957737,1704835945599,-612.42,0.00041178,30]
[310957738,1704835945621,-500.0,0.00041178,30]
[310957739,1704835945641,-500.0,0.00041178,30]
[310957740,1704835945659,-335.40620653,0.00041178,30]
[310957741,1704835945681,-500.0,0.00041178,30]
[310957742,1704835945703,-500.0,0.00041178,30]
[310957743,1704835945726,-500.0,0.00041178,30]
[310957744,1704835945743,-500.0,0.00041178,30]
[310957745,1704835945765,-526.88839596,0.00041178,30]
[310957746,1704835945800,-500.0,0.00041178,30]
[310957747,1704835945817,-500.0,0.00041178,30]
[310957748,1704835945832,-700.31,0.00041178,30]
[310957749,1704835945858,-500.0,0.00041178,30]
[310957750,1704835945883,-500.0,0.00041178,30]
[310957751,1704835945909,-1173.84,0.00041178,30]
[310957752,1704835945942,-500.0,0.00041178,30]
[310957753,1704835945977,-500.0,0.00041178,30]
[310957754,1704835945993,-602.16807662,0.00041178,30]
[310957755,1704835946013,-890.72,0.00041178,30]
[310957756,1704835946030,-519.17,0.00041178,30]
[310957757,1704835946045,-531.58068078,0.00041178,30]
[310957758,1704835946061,-681.49,0.00041178,30]
[310957759,1704835946083,-500.0,0.00041178,30]
[310957760,1704835946109,-627.48,0.00041178,30]
[310957761,1704835946140,-1141.38,0.00041178,30]
[310957762,1704835946158,-500.0,0.00041178,30]
[310957763,1704835946181,-1148.32,0.00041178,30]
[310957764,1704835946195,-596.45,0.00041178,30]
[310957765,1704835946225,-500.0,0.00041178,30]
[310957766,1704835946248,-616.05,0.00041178,30]
[310957767,1704835946271,-500.0,0.00041178,30]
[310957768,1704835946286,-1154.54,0.00041178,30]
[310957769,1704835946312,-500.0,0.00041178,30]
[310957770,1704835946331,-500.0,0.00041178,30]
[310957771,1704835946355,-500.0,0.00041178,15]
[310957772,1704835946377,-500.0,0.00041178,30]
[310957773,1704835946404,-500.0,0.00041178,30]
[310957774,1704835946428,-622.7,0.00041178,30]
[310957775,1704835946448,-1370.57,0.00041178,30]
[310957776,1704835946479,-724.45,0.00041178,30]
[310957777,1704835946506,-500.0,0.00041178,30]
[310957778,1704835946525,-500.0,0.00041178,30]
[310957779,1704835946543,-500.0,0.00041178,30]
[310957780,1704835946560,-555.95,0.00041178,30]
[310957781,1704835946579,-500.0,0.00041178,30]
[310957782,1704835946603,-500.0,0.00041178,30]
[310957783,1704835946631,-500.0,0.00041178,30]
[310957784,1704835946651,-677.52,0.00041178,30]
[310957785,1704835946674,-500.0,0.00041178,30]
[310957786,1704835946693,-500.0,0.00041178,30]
[310957787,1704835946714,-500.0,0.00041178,30]
[310957788,1704835946738,-500.0,0.00041178,30]
[310957789,1704835946762,-500.0,0.00041178,30]
[310957790,1704835946782,-500.0,0.00041178,30]
[310957791,1704835946799,-500.0,0.00041178,30]
[310957792,1704835946820,-500.0,0.00041178,30]
[310957793,1704835946846,-854.7,0.00041178,30]
[310957794,1704835946864,-1132.67,0.00041178,30]
[310957795,1704835946884,-500.0,0.00041178,30]
[310957796,1704835946905,-500.0,0.00041178,30]
[310957797,1704835946921,-500.0,0.00041178,30]
[310957798,1704835946944,-500.0,0.00041178,30]
[310957799,1704835946958,-508.62934644,0.00041178,30]
[310957800,1704835946988,-500.0,0.00041178,30]
[310957801,1704835947008,-950.79,0.00041178,30]
[310957802,1704835947030,-500.0,0.00041178,30]
[310957803,1704835947044,-500.0,0.00041178,30]
[310957804,1704835947076,-500.0,0.00041178,30]
[310957805,1704835947101,-1393.23,0.00041178,30]
[310957806,1704835947138,-500.0,0.00041178,30]
[310957807,1704835947157,-500.0,0.00041178,30]
[310957808,1704835947173,-1054.09,0.00041178,30]
[310957809,1704835947187,-500.0,0.00041178,30]
[310957810,1704835947201,-500.0,0.00041178,30]
[310957811,1704835947225,-500.0,0.00041178,30]
[310957812,1704835947242,-500.0,0.00041178,30]
[310957813,1704835947262,-982.92,0.00041178,30]
[310957814,1704835947279,-897.66,0.00041178,30]
[310957815,1704835947302,-612.78,0.00041178,30]
[310957816,1704835947325,-1038.74,0.00041178,30]
[310957817,1704835947349,-500.0,0.00041178,30]
[310957818,1704835947373,-500.0,0.00041178,30]
[310957819,1704835947403,-625.2,0.00041178,30]
[310957820,1704835947432,-1010.24,0.00041178,30]
[310957821,1704835947451,-585.83,0.00041178,30]
[310957822,1704835947476,-500.0,0.00041178,30]
[310957823,1704835947492,-500.0,0.00041178,30]
[310957824,1704835947512,-500.0,0.00041178,30]
[310957825,1704835947540,-500.0,0.00041178,30]
[310957826,1704835947570,-500.0,0.00041178,30]
[310957827,1704835947590,-1823.52,0.00041178,30]
[310957828,1704835947604,-500.0,0.00041178,30]
[310957829,1704835947631,-1503.9,0.00041178,30]
[310957830,1704835947650,-649.77486738,0.00041178,30]
[310957831,1704835947670,-500.0,0.00041178,30]
[310957832,1704835947696,-860.51,0.00041178,30]
[310957833,1704835947717,-975.74,0.00041178,30]
[310957834,1704835947737,-273.47593508,0.00041178,30]
[310957835,1704835947758,-693.44,0.00041178,30]
[310957836,1704835947787,-500.0,0.00041178,30]
[310957837,1704835947809,-500.0,0.00041178,30]
[310957838,1704835947834,-500.0,0.00041178,30]
[310957839,1704835947856,-812.42,0.00041178,30]
[310957840,1704835947875,-1252.33,0.00041178,30]
[310957841,1704835947894,-500.0,0.00041178,30]
[310957842,1704835947909,-500.0,0.00041178,30]
[310957843,1704835947929,-1661.63,0.00041178,30]
[310957844,1704835947945,-835.41,0.00041178,30]
[310957845,1704835947960,-929.16,0.00041178,30]
[310957846,1704835947984,-500.0,0.00041178,30]
[310957847,1704835948002,-520.49109013,0.00041178,30]
[310957848,1704835948027,-500.0,0.00041178,30]
[310957849,1704835948060,-500.0,0.00041178,30]
[310957850,1704835948083,-996.89,0.00041178,4]
[310957851,1704835948098,-1000.0,0.00041178,7]
[310957852,1704835948115,-500.0,0.00041178,30]
[310957853,1704835948141,-500.0,0.00041178,30]
[310957854,1704835948158,-500.0,0.00041178,30]
[310957855,1704835948189,-500.0,0.00041178,30]
[310957856,1704835948214,-1020.06,0.00041178,30]
[310957857,1704835948233,-500.0,0.00041178,30]
[310957858,1704835948251,-500.0,0.00041178,30]
[310957859,1704835948271,-500.0,0.00041178,30]
[310957860,1704835948296,-500.0,0.00041178,30]
[310957861,1704835948321,-411.19068573,0.00041178,30]
[310957862,1704835948348,-500.0,0.00041178,30]
[310957863,1704835948368,-167.08147855,0.00041178,30]
[310957864,1704835948386,-955.18,0.00041178,30]
[310957865,1704835948415,-500.0,0.00041178,30]
[310957866,1704835948452,-529.06061302,0.00041178,30]
[310957867,1704835948471,-2000.0,0.00041178,30]
[310957868,1704835948490,-1186.89,0.00041178,30]
[310957869,1704835948514,-500.0,0.00041178,2]
[310957870,1704835948542,-768.37,0.00041178,30]
[310957871,1704835948563,-469.71,0.00041178,30]
[310957872,1704835948584,-636.74,0.00041178,30]
[310957873,1704835948600,-623.64,0.00041178,30]
[310957874,1704835948619,-500.0,0.00041178,30]
[310957875,1704835948649,-500.0,0.00041178,30]
[310957876,1704835948672,-1030.22,0.00041178,30]
[310957877,1704835948698,-848.66,0.00041178,30]
[310957878,1704835948715,-500.0,0.00041178,30]
[310957879,1704835948735,-500.0,0.00041178,30]
[310957880,1704835948755,-1351.73,0.00041178,30]
[310957881,1704835948771,-1236.91,0.00041178,30]